fUSD/lending_fUSD_20250606
["ID","MTS","AMOUNT","RATE_DAILY","PERIOD"]
[364686686,1749203438802,-500.0,0.00030136,2]
[364686687,1749203438811,-1464.0,0.00030136,2]
[364686688,1749203438820,-500.0,0.00030136,2]
[364686689,1749203438829,-150.0,0.00030136,2]
[364686690,1749203438839,-548.0,0.00030136,2]
[364686691,1749203438848,-300.0,0.00030137,80]
[364686692,1749203438857,-19481.83726111,0.00030143,2]
[364686693,1749203440239,-418.51,0.00029133,2]
[364686694,1749203440253,-333.80133026,0.00030143,2]
[364686695,1749203440273,-12056.39868808,0.00030143,2]
[364686696,1749203440291,-31873.98737015,0.00030143,2]
[364686697,1749203440302,-12749.2049299,0.00030144,2]
[364686698,1749203440312,-500.0,0.00030148,2]
[364686699,1749203440323,-332.67040444,0.00030148,2]
[364686700,1749203440332,-500.0,0.00030148,2]
[364686701,1749203440342,-500.0,0.00030148,2]
[364686702,1749203440352,-500.0,0.00030148,2]
[364686703,1749203440362,-500.0,0.00030148,2]
[364686704,1749203440372,-500.0,0.00030148,2]
[364686705,1749203440381,-500.0,0.00030148,2]
[364686706,1749203440391,-500.0,0.00030148,2]
[364686707,1749203440401,-241.95097952,0.00030148,2]
[364686708,1749203440410,-500.0,0.00030148,2]
[364686709,1749203440420,-500.0,0.00030148,2]
[364686710,1749203440429,-273.2720819,0.00030148,2]
[364686711,1749203440439,-279.54017064,0.00030148,2]
[364686712,1749203440449,-500.0,0.00030148,2]
[364686713,1749203440459,-500.0,0.00030148,2]
[364686714,1749203440468,-500.0,0.00030148,2]
[364686715,1749203440478,-406.39022796,0.00030148,2]
[364686716,1749203440487,-500.3494402,0.00030148,2]
[364686717,1749203440497,-140241.254229,0.00030149,2]
[364686718,1749203440506,-500.0,0.00030152,2]
[364686719,1749203440516,-500.0,0.00030152,2]
[364686720,1749203440525,-150.0,0.00030152,2]
[364686721,1749203440534,-419.0,0.00030152,2]
[364686722,1749203440543,-500.0,0.00030152,2]
[364686723,1749203440553,-500.0,0.00030152,2]
[364686724,1749203440562,-500.0,0.00030152,2]
[364686725,1749203440571,-500.0,0.00030152,2]
[364686726,1749203440579,-500.0,0.00030152,2]
[364686727,1749203440588,-500.0,0.00030152,2]
[364686728,1749203440600,-150.0,0.00030152,2]
[364686729,1749203440609,-453.0,0.00030152,2]
[364686730,1749203440618,-2173.0,0.00030152,2]
[364686731,1749203440627,-150.0,0.00030152,2]
[364686732,1749203440637,-500.0,0.00030152,2]
[364686733,1749203440646,-150.0,0.00030152,2]
[364686734,1749203440657,-150.0,0.00030152,2]
[364686735,1749203440667,-150.0,0.00030152,2]
[364686736,1749203440677,-150.0,0.00030152,2]
[364686737,1749203440687,-150.0,0.00030152,2]
[364686738,1749203440696,-2811.82,0.00030153,7]
[364686739,1749203440705,-25498.4098598,0.00030153,2]
[364686740,1749203440715,-63746.0246496,0.00030153,2]
[364686741,1749203440724,-455.916204,0.00030154,7]
[364686742,1749203440733,-455.916204,0.00030154,7]
[364686743,1749203440742,-151.0,0.00030154,7]
[364686744,1749203440752,-151.0,0.00030154,7]
[364686745,1749203440762,-500.0,0.00030154,7]
[364686746,1749203440771,-500.0,0.00030154,7]
[364686747,1749203440781,-500.0,0.00030154,7]
[364686748,1749203440790,-155.32431393,0.00030154,7]
[364686749,1749203440799,-500.0,0.00030154,7]
[364686750,1749203440809,-500.0,0.00030154,7]
[364686751,1749203440819,-500.0,0.00030154,7]
[364686752,1749203440828,-151.76992592,0.00030154,7]
[364686753,1749203440838,-500.0,0.00030154,7]
[364686754,1749203440847,-500.0,0.00030154,7]
[364686755,1749203440856,-166.83162424,0.00030154,7]
[364686756,1749203440866,-175474.8914859,0.00030155,2]
[364686757,1749203440875,-151.0,0.00030155,7]
[364686758,1749203440884,-5622.8461226,0.00030155,2]
[364686759,1749203440894,-151.414667,0.00030155,7]
[364686760,1749203440903,-2811.82,0.00030158,7]
[364686761,1749203440912,-2811.82,0.00030158,7]
[364686762,1749203440921,-15574.8484901,0.00030159,2]
[364686763,1749203440930,-151.0,0.00030159,7]
[364686764,1749203440939,-151.0,0.00030159,7]
[364686765,1749203440948,-151.0,0.00030159,7]
[364686766,1749203440957,-151.0,0.00030159,7]
[364686767,1749203440966,-151.0,0.00030159,7]
[364686768,1749203440975,-151.0,0.00030159,7]
[364686769,1749203440984,-151.0,0.00030159,7]
[364686770,1749203440993,-151.0,0.00030159,7]
[364686771,1749203441002,-151.0,0.00030159,7]
[364686772,1749203441011,-151.0,0.00030159,7]
[364686773,1749203441019,-151.0,0.00030159,7]
[364686774,1749203441029,-170.730005,0.00030159,7]
[364686775,1749203441037,-5441.86653337,0.00030162,4]
[364686776,1749203441046,-151.0,0.00030162,7]
[364686777,1749203441055,-151.0,0.00030162,7]
[364686778,1749203441064,-151.725073,0.00030162,7]
[364686779,1749203441073,-151.0,0.00030162,7]
[364686780,1749203441083,-153.712885,0.00030162,7]
[364686781,1749203441092,-151.0,0.00030162,7]
[364686782,1749203441101,-151.0,0.00030162,7]
[364686783,1749203441110,-1273.251879,0.00030162,7]
[364686784,1749203441119,-1273.251879,0.00030162,7]
[364686785,1749203441128,-151.0,0.00030162,7]
[364686786,1749203441137,-151.0,0.00030162,7]
[364686787,1749203441145,-151.0,0.00030162,7]
[364686788,1749203441155,-156.153598,0.00030162,7]
[364686789,1749203441164,-151.0,0.00030162,7]
[364686790,1749203441173,-156.153598,0.00030162,7]
[364686791,1749203441182,-219.871268,0.00030162,7]
[364686792,1749203441191,-360.864178,0.00030162,7]
[364686793,1749203441200,-219.871268,0.00030162,7]
[364686794,1749203441209,-360.864178,0.00030162,7]
[364686795,1749203441218,-167.171432,0.00030162,7]
[364686796,1749203441227,-167.171432,0.00030162,7]
[364686797,1749203441235,-2126.20583486,0.00030162,2]
[364686798,1749203441245,-500.0,0.00030163,2]
[364686799,1749203441255,-150.0,0.00030163,2]
[364686800,1749203441264,-151.0,0.00030163,7]
[364686801,1749203441272,-151.0,0.00030163,7]
[364686802,1749203441282,-151.0,0.00030163,7]
[364686803,1749203441291,-151.0,0.00030163,7]
[364686804,1749203441300,-151.0,0.00030163,7]
[364686805,1749203441310,-151.0,0.00030163,7]
[364686806,1749203441319,-2811.82,0.00030163,7]
[364686807,1749203441329,-2811.82,0.00030163,7]
[364686808,1749203441338,-2811.82,0.00030163,7]
[364686809,1749203441348,-2811.82,0.00030163,7]
[364686810,1749203441357,-2811.82,0.00030163,7]
[364686811,1749203441367,-2811.82,0.00030163,7]
[364686812,1749203441376,-2811.82,0.00030163,7]
[364686813,1749203441386,-2811.82,0.00030163,7]
[364686814,1749203441395,-2811.82,0.00030163,7]
[364686815,1749203441404,-2811.82,0.00030163,7]
[364686816,1749203441413,-2811.82,0.00030163,7]
[364686817,1749203441423,-151.0,0.00030163,7]
[364686818,1749203441432,-151.0,0.00030163,7]
[364686819,1749203441442,-151.0,0.00030163,7]
[364686820,1749203441451,-151.0,0.00030163,7]
[364686821,1749203441461,-151.0,0.00030163,7]
[364686822,1749203441470,-500.0,0.00030163,2]
[364686823,1749203441479,-150.0,0.00030163,2]
[364686824,1749203441488,-500.0,0.00030163,2]
[364686825,1749203441497,-500.0,0.00030163,2]
[364686826,1749203441507,-500.0,0.00030163,2]
[364686827,1749203441516,-1464.0,0.00030163,2]
[364686828,1749203441525,-500.0,0.00030163,2]
[364686829,1749203441534,-548.0,0.00030163,2]
[364686830,1749203441543,-768.0,0.00030164,5]
[364686831,1749203441553,-6717.3210089,0.00030164,7]
[364686832,1749203441562,-50000.0,0.00030164,19]
[364686833,1749203441572,-870.34889421,0.00030164,2]
[364686834,1749203441583,-767228.30969429,0.00030164,7]
[364686846,1749203478386,1038.25,0.0002918,120]
[364686848,1749203688107,2000.0,0.00029139,120]
[364686849,1749203887699,800.0,0.00026986,120]
[364686850,1749203932413,212.66,0.00035616,120]
[364686851,1749204003778,159.28,0.00013699,2]
[364686853,1749204021225,1077.76,0.00029066,120]
[364686854,1749204021621,1077.76,0.00032699,120]
[364686855,1749204193421,500.0,0.00035616,120]
[364686856,1749204205708,500.0,0.00035616,120]
[364686857,1749204242541,1000.0,0.00035616,120]
[364686858,1749204258013,160.0,0.000356,120]
[364686897,1749204479118,300.0,0.00033904,120]
[364686898,1749204536629,1000.0,0.000356,120]
[364686902,1749204620033,250.0,0.00019,2]
[364686930,1749204632744,-560.36,0.00027221,2]
[364686933,1749204632758,-166.60134335,0.00027221,2]
[364686935,1749204632772,-641.0,0.00028,2]
[364686937,1749204632785,-205.0,0.00028159,2]
[364686940,1749204632797,-427.03865665,0.00028682,2]
[364686942,1749204632813,-1530.81734335,0.00028682,2]
[364686945,1749204632825,-207.4,0.00028682,2]
[364686947,1749204632837,-300.0,0.00028698,2]
[364686949,1749204632850,-300.0,0.00028698,2]
[364686952,1749204632863,-1200.0,0.00028698,2]
[364686954,1749204632876,-1164.445,0.00028699,2]
[364686956,1749204632888,-944.0,0.00028699,2]
[364686959,1749204632901,-636.0,0.00028699,2]
[364686961,1749204632914,-805.0,0.00028699,2]
[364686963,1749204632926,-929.469,0.00028699,2]
[364686966,1749204632939,-2099.361,0.00028699,2]
[364686968,1749204632951,-1274.0,0.00028699,2]
[364686970,1749204632963,-559.122,0.00028699,2]
[364686973,1749204632975,-87.57989414,0.00028699,2]
[364686976,1749204633005,-477.05835835,0.00028699,2]
[364687509,1749204638442,-24.36174751,0.00028699,2]
[364687511,1749204638451,-1254.0,0.00028699,2]
[364687513,1749204638461,-852.0,0.00028699,2]
[364687515,1749204638470,-883.0,0.00028699,2]
[364687517,1749204638480,-5967.32644081,0.00028699,2]
[364687520,1749204638491,-339.33392696,0.00028699,2]
[364687525,1749204638534,-710.33963223,0.00028699,2]
[364687527,1749204638544,-2030.296672,0.00028737,2]
[364687529,1749204638553,-2105.41764886,0.00028792,2]
[364687531,1749204638563,-2183.31810187,0.00028847,2]
[364687533,1749204638572,-1654.91364466,0.000289,20]
[364687535,1749204638582,-2264.10087164,0.00028902,2]
[364687537,1749204638591,-1000.0,0.00028919,2]
[364687539,1749204638601,-228.57090178,0.00028926,2]
[364687722,1749204640414,-521.61853626,0.00028926,2]
[364687724,1749204640426,-249.81056196,0.00028926,2]
[364687726,1749204640436,-1121.26943804,0.00028957,2]
[364687728,1749204640448,-1226.60316585,0.00028957,2]
[364687730,1749204640458,-189.26,0.00028996,30]
[364687732,1749204640469,-2434.74389024,0.00029012,2]
[364687734,1749204640479,-158.77,0.00029031,2]
[364687736,1749204640489,-2524.82941417,0.00029067,2]
[364687739,1749204640503,-250.0,0.00029075,2]
[364687741,1749204640516,-13762.99,0.00029089,2]
[364687743,1749204640532,-761.35,0.000291,2]
[364687745,1749204640544,-1931.13015667,0.00029122,2]
[364687747,1749204640555,-150.0,0.00029124,7]
[364687749,1749204640565,-155.0,0.0002923,2]
[364687751,1749204640575,-4081.0,0.0002923,2]
[364687753,1749204640586,-150.0,0.00029241,2]
[364687755,1749204640596,-1654.91364447,0.00029245,20]
[364687757,1749204640606,-170.54,0.00029378,2]
[364687759,1749204640616,-170.54,0.00029378,2]
[364687761,1749204640626,-163.22,0.00029378,2]
[364687763,1749204640637,-163.22,0.00029378,2]
[364687765,1749204640646,-150.0,0.00029398,2]
[364687767,1749204640660,-150.0,0.00029407,2]
[364687769,1749204640679,-560.36,0.00029485,2]
[364687771,1749204640689,-1654.91364447,0.0002959,21]
[364687773,1749204640699,-150.0,0.00029618,2]
[364687775,1749204640710,-150.0,0.00029679,2]
[364687777,1749204640721,-150.0,0.00029751,2]
[364687779,1749204640730,-150.0,0.00029761,2]
[364687781,1749204640740,-150.0,0.00029822,2]
[364687783,1749204640751,-150.0,0.00029856,2]
[364687785,1749204640760,-785.33551,0.0002986,2]
[364687787,1749204640769,-150.0,0.00029861,2]
[364687789,1749204640781,-150.0,0.00029891,2]
[364687791,1749204640791,-1654.91364447,0.00029934,22]
[364687793,1749204640801,-1619.00843999,0.00029947,2]
[364687795,1749204640813,-150.0,0.00029961,2]
[364687797,1749204640823,-150.0,0.00029984,2]
[364687799,1749204640833,-150.0,0.00029987,2]
[364687801,1749204640843,-1619.00843999,0.00029997,2]
[364687803,1749204640853,-27195.48247358,0.0003,2]
[364687805,1749204640862,-4647.64,0.0003001,2]
[364687807,1749204640872,-400.0,0.00030016,13]
[364687809,1749204640881,-400.0,0.00030016,13]
[364687810,1749204640891,-400.0,0.00030016,13]
[364687812,1749204640900,-400.0,0.00030016,13]
[364687815,1749204640911,-400.0,0.00030016,13]
[364687817,1749204640920,-400.0,0.00030016,13]
[364687819,1749204640930,-400.0,0.00030016,13]
[364687821,1749204640941,-400.0,0.00030016,13]
[364687822,1749204640950,-400.0,0.00030016,13]
[364687824,1749204640959,-400.0,0.00030016,13]
[364687826,1749204640970,-400.0,0.00030016,13]
[364687828,1749204640980,-400.0,0.00030016,13]
[364687830,1749204640990,-400.0,0.00030016,13]
[364687832,1749204641004,-400.0,0.00030016,13]
[364687834,1749204641013,-400.0,0.00030016,13]
[364687836,1749204641022,-400.0,0.00030016,13]
[364687838,1749204641031,-400.0,0.00030016,13]
[364687840,1749204641042,-400.0,0.00030016,13]
[364687842,1749204641051,-400.0,0.00030016,13]
[364687844,1749204641060,-400.0,0.00030016,13]
[364687846,1749204641070,-400.0,0.00030016,13]
[364687848,1749204641080,-400.0,0.00030016,13]
[364687850,1749204641090,-400.0,0.00030016,13]
[364687852,1749204641099,-400.0,0.00030016,13]
[364687855,1749204641110,-400.0,0.00030016,13]
[364687857,1749204641119,-400.0,0.00030016,13]
[364687860,1749204641129,-400.0,0.00030016,13]
[364687862,1749204641138,-400.0,0.00030016,13]
[364687864,1749204641148,-400.0,0.00030016,13]
[364687866,1749204641157,-400.0,0.00030016,13]
[364687868,1749204641166,-400.0,0.00030016,13]
[364687870,1749204641176,-400.0,0.00030016,13]
[364687872,1749204641185,-400.0,0.00030016,13]
[364687874,1749204641194,-400.0,0.00030016,13]
[364687876,1749204641203,-400.0,0.00030016,13]
[364687878,1749204641212,-400.0,0.00030016,13]
[364687880,1749204641222,-400.0,0.00030016,13]
[364687882,1749204641232,-400.0,0.00030016,13]
[364687884,1749204641241,-400.0,0.00030016,13]
[364687886,1749204641251,-400.0,0.00030016,13]
[364687888,1749204641261,-400.0,0.00030016,13]
[364687890,1749204641271,-400.0,0.00030016,13]
[364687892,1749204641280,-400.0,0.00030016,13]
[364687894,1749204641290,-400.0,0.00030016,13]
[364687896,1749204641299,-400.0,0.00030016,13]
[364687898,1749204641310,-400.0,0.00030016,13]
[364687900,1749204641319,-400.0,0.00030016,13]
[364687902,1749204641329,-400.0,0.00030016,13]
[364687905,1749204641340,-400.0,0.00030016,13]
[364687906,1749204641350,-400.0,0.00030016,13]
[364687909,1749204641360,-400.0,0.00030016,13]
[364687911,1749204641370,-400.0,0.00030016,13]
[364687913,1749204641380,-400.0,0.00030016,13]
[364687914,1749204641389,-400.0,0.00030016,13]
[364687916,1749204641398,-400.0,0.00030016,13]
[364687918,1749204641407,-400.0,0.00030016,13]
[364687920,1749204641418,-324.0,0.00030016,13]
[364687922,1749204641427,-500.0,0.00030016,2]
[364687924,1749204641436,-500.0,0.00030016,2]
[364687926,1749204641446,-500.0,0.00030016,2]
[364687927,1749204641456,-500.0,0.00030016,2]
[364687928,1749204641465,-500.0,0.00030016,2]
[364687929,1749204641474,-500.0,0.00030016,2]
[364687930,1749204641483,-500.0,0.00030016,2]
[364687931,1749204641492,-500.0,0.00030016,2]
[364687932,1749204641501,-566.0,0.00030016,2]
[364687933,1749204641511,-200.0,0.00030016,2]
[364687934,1749204641520,-200.0,0.00030016,2]
[364687936,1749204641529,-200.0,0.00030016,2]
[364687938,1749204641539,-200.0,0.00030016,2]
[364687940,1749204641549,-200.0,0.00030016,2]
[364687941,1749204641559,-200.0,0.00030016,2]
[364687943,1749204641569,-200.0,0.00030016,2]
[364687945,1749204641578,-200.0,0.00030016,2]
[364687948,1749204641588,-200.0,0.00030016,2]
[364687950,1749204641598,-200.0,0.00030016,2]
[364687951,1749204641607,-200.0,0.00030016,2]
[364687953,1749204641618,-200.0,0.00030016,2]
[364687956,1749204641628,-200.0,0.00030016,2]
[364687958,1749204641638,-200.0,0.00030016,2]
[364687959,1749204641648,-200.0,0.00030016,2]
[364687961,1749204641658,-1000.0,0.00030021,2]
[364687963,1749204641667,-204.51492762,0.00030029,2]
[364687966,1749204641678,-500.0,0.00030029,2]
[364687968,1749204641687,-500.0,0.00030029,2]
[364687970,1749204641697,-500.0,0.00030029,2]
[364687971,1749204641706,-500.0,0.00030029,2]
[364687973,1749204641716,-500.0,0.00030029,2]
[364687975,1749204641726,-500.0,0.00030029,2]
[364687977,1749204641736,-500.0,0.00030029,2]
[364687979,1749204641746,-500.0,0.00030029,2]
[364687981,1749204641755,-500.0,0.00030029,2]
[364687983,1749204641765,-500.0,0.00030029,2]
[364687985,1749204641775,-500.0,0.00030029,2]
[364687987,1749204641784,-500.0,0.00030029,2]
[364687989,1749204641794,-500.0,0.00030029,2]
[364687991,1749204641803,-500.0,0.00030029,2]
[364687994,1749204641816,-304.80171682,0.00030029,2]
[364687996,1749204641827,-500.0,0.00030029,2]
[364687998,1749204641836,-500.0,0.00030029,2]
[364688021,1749204642043,-500.0,0.00030029,2]
[364688023,1749204642056,-500.0,0.00030029,2]
[364688025,1749204642067,-500.0,0.00030029,2]
[364688027,1749204642077,-500.0,0.00030029,2]
[364688029,1749204642087,-500.0,0.00030029,2]
[364688031,1749204642096,-151.0,0.0003003,2]
[364688033,1749204642106,-151.0,0.0003003,2]
[364688035,1749204642115,-500.0,0.0003003,2]
[364688037,1749204642124,-500.0,0.0003003,2]
[364688039,1749204642133,-500.0,0.0003003,2]
[364688041,1749204642143,-500.0,0.0003003,2]
[364688043,1749204642152,-500.0,0.0003003,2]
[364688045,1749204642161,-500.0,0.0003003,2]
[364688047,1749204642171,-1000.0,0.0003003,2]
[364688049,1749204642180,-500.0,0.0003003,2]
[364688051,1749204642190,-500.0,0.0003003,2]
[364688053,1749204642199,-500.0,0.0003003,2]
[364688055,1749204642208,-151.0,0.0003003,2]
[364688057,1749204642218,-500.0,0.0003003,2]
[364688059,1749204642227,-800.0,0.0003003,2]
[364688061,1749204642236,-151.0,0.0003003,2]
[364688063,1749204642246,-500.0,0.0003003,2]
[364688065,1749204642256,-800.0,0.0003003,2]
[364688067,1749204642265,-151.0,0.0003003,2]
[364688069,1749204642274,-500.0,0.0003003,2]
[364688071,1749204642284,-930.94833331,0.0003003,2]
[364688073,1749204642293,-151.0,0.0003003,2]
[364688075,1749204642302,-500.0,0.0003003,2]
[364688077,1749204642311,-290.0,0.0003003,2]
[364688079,1749204642320,-500.0,0.0003003,2]
[364688081,1749204642330,-500.0,0.0003003,2]
[364688083,1749204642339,-500.0,0.0003003,2]
[364688085,1749204642348,-500.0,0.0003003,2]
[364688087,1749204642358,-784.07129256,0.0003003,2]
[364688089,1749204642367,-171.46968583,0.00030044,2]
[364688091,1749204642376,-1341.7861,0.00030044,2]
[364688093,1749204642386,-1619.00843999,0.00030046,2]
[364688095,1749204642395,-30124.5181,0.00030048,2]
[364688097,1749204642404,-1000.0,0.00030048,2]
[364688099,1749204642414,-159.56505099,0.00030048,2]
[364688101,1749204642423,-2590.6825695,0.00030048,2]
[364688103,1749204642432,-866.4131,0.00030049,2]
[364688105,1749204642441,-500.0,0.00030049,2]
[364688107,1749204642451,-215.0738,0.00030051,2]
[364688109,1749204642460,-159.56505095,0.00030051,2]
[364688111,1749204642470,-159.56505095,0.00030054,2]
[364688113,1749204642479,-159.56505095,0.00030058,2]
[364688115,1749204642488,-181.07450385,0.00030059,2]
[364688117,1749204642498,-181.07450385,0.0003006,2]
[364688119,1749204642508,-159.56505095,0.00030061,2]
[364688121,1749204642517,-181.07450385,0.00030061,2]
[364688123,1749204642526,-181.07450385,0.00030063,2]
[364688125,1749204642535,-157.90693937,0.00030063,2]
[364688127,1749204642546,-237.49350576,0.00030063,2]
[364688129,1749204642557,-181.07450385,0.00030064,2]
[364688131,1749204642566,-159.56505095,0.00030064,2]
[364688133,1749204642576,-2590.68256946,0.00030086,2]
[364688135,1749204642585,-1619.00843999,0.00030096,2]
[364688137,1749204642595,-4500.0,0.000301,3]
[364688139,1749204642604,-4647.61,0.000301,2]
[364688141,1749204642613,-2590.68256946,0.00030125,2]
[364688143,1749204642623,-300.0,0.00030137,80]
[364688145,1749204642633,-150.0,0.00030137,7]
[364688147,1749204642642,-249.59327405,0.00030137,7]
[364688149,1749204642652,-150.0,0.00030137,7]
[364688150,1749204642661,-319.28703344,0.00030137,7]
[364688152,1749204642670,-150.0,0.00030137,7]
[364688154,1749204642679,-150.0,0.00030137,7]
[364688156,1749204642689,-150.0,0.00030137,7]
[364688159,1749204642699,-150.0,0.00030137,7]
[364688161,1749204642708,-150.0,0.00030137,7]
[364688163,1749204642717,-150.0,0.00030137,7]
[364688165,1749204642726,-150.0,0.00030137,7]
[364688167,1749204642736,-150.0,0.00030137,7]
[364688169,1749204642745,-150.0,0.00030137,7]
[364688171,1749204642756,-526.88344217,0.00030137,2]
[364688173,1749204642766,-73561.21792201,0.00030143,2]
[364688318,1749204644191,-500.0,0.00030029,2]
[364688320,1749204644201,-500.0,0.00030029,2]
[364688322,1749204644210,-500.0,0.00030029,2]
[364688324,1749204644218,-500.0,0.00030029,2]
[364688326,1749204644228,-500.0,0.00030029,2]
[364688328,1749204644237,-500.0,0.00030029,2]
[364688330,1749204644247,-813.32307979,0.00030143,2]
[364688332,1749204644260,-491.95238989,0.00030143,2]
[364688334,1749204644271,-6288.78853201,0.00030143,2]
[364688368,1749204646435,-304.173,0.0002923,2]
[364688369,1749204646445,-400.0,0.00030028,2]
[364688370,1749204646455,-140.17232881,0.00030143,2]
[364688371,1749204646467,-21573.82897849,0.00030143,2]
[364688372,1749204646476,-641.0,0.00030144,5]
[364688373,1749204646486,-641.0,0.00030144,8]
[364688374,1749204646495,-1619.00843999,0.00030145,2]
[364688375,1749204646504,-33380.71049025,0.00030147,2]
[364688376,1749204646647,-2358.95772199,0.00030147,2]
[364688377,1749204646702,-1961.01299288,0.00030147,2]
[364688378,1749204646713,-691.53350517,0.00030147,2]
[364688379,1749204646756,-323.87407019,0.00030147,2]
[364688380,1749204646768,-3791.88748003,0.00030147,2]
[364688382,1749204658391,168.0,0.0003561,120]
[364688383,1749204718501,1350.0,0.0003561,120]
[364688384,1749204735486,190.5346477,0.00035616,120]
[364688385,1749204745918,500.0,0.000356,120]
[364688386,1749204757093,300.0,0.000356,120]
[364688387,1749204791300,800.0,0.000356,120]
[364688388,1749204820358,300.0,0.000356,120]
[364688389,1749204844293,1500.0,0.00035,120]
[364688390,1749204855716,203.8,0.00035616,120]
[364688391,1749204884188,3000.0,0.00035,120]
[364688392,1749204894902,2000.0,0.00029073,120]
[364688393,1749204924868,4717.7564,0.0003561,120]
[364688394,1749204943481,2217.0,0.00035,120]
[364688395,1749204966059,1000.0,0.00035,120]
[364688396,1749205007490,385.84,0.00026,120]
[364688398,1749205068750,159.28,0.00013699,2]
[364688400,1749205111041,1276.95,0.00029083,120]
[364688401,1749205111233,1276.95,0.00032719,120]
[364688402,1749205198800,150.0,0.00035616,120]
[364688403,1749205227938,1334.48,0.00035616,120]
[364688417,1749205420445,2267.0,0.00035616,120]
[364688418,1749205522407,180.0,0.00033904,120]
[364688475,1749205675445,379.24461387,0.0002,4]
[364688476,1749205728491,200.0,0.00035616,120]
[364688483,1749205789516,1000.0,0.0003561,120]
[364688484,1749205790993,1000.0,0.0003561,120]
[364688485,1749205792467,1000.0,0.0003561,120]
[364688486,1749205793197,1000.0,0.0003561,120]
[364688487,1749205793870,1000.0,0.0003561,120]
[364688488,1749205794565,1000.0,0.0003561,120]
[364688489,1749205795605,1000.0,0.0003561,120]
[364688491,1749205796696,1000.0,0.0003561,120]
[364688492,1749205797764,1000.0,0.0003561,120]
[364688493,1749205798543,1000.0,0.0003561,120]
[364688494,1749205807745,1000.0,0.0003561,120]
[364688495,1749205810311,1000.0,0.0003561,120]
[364688496,1749205816291,1000.0,0.0003561,120]
[364688502,1749205831883,-5000.0041753,0.00024,5]
[364688503,1749205831892,-960.0,0.00027028,2]
[364688504,1749205831902,-631.55,0.00027165,2]
[364688505,1749205831911,-150.0,0.0002764,2]
[364688506,1749205831920,-150.0,0.0002781,2]
[364688507,1749205831929,-1456.1617304,0.000279,18]
[364688508,1749205831939,-150.0,0.00028047,2]
[364688509,1749205831948,-1456.16173024,0.00028279,18]
[364688510,1749205831957,-150.0,0.00028388,2]
[364688511,1749205831967,-293.12236406,0.00028484,2]
[364688516,1749205836292,3578.81,0.00035616,120]
[364688528,1749205837556,-1039.4,0.00026892,2]
[364688529,1749205837731,-2327.576629,0.00026892,2]
[364688530,1749205837743,-706.87763594,0.00028484,2]
[364688531,1749205837756,-150.0,0.00028519,2]
[364688532,1749205837766,-1456.16173024,0.00028659,19]
[364688533,1749205837775,-1000.0,0.00028696,2]
[364688534,1749205837784,-1000.0,0.0002896,2]
[364688535,1749205837793,-165.6,0.00028986,30]
[364688536,1749205837802,-250.0,0.0002899,2]
[364688537,1749205837811,-580.83,0.00028997,2]
[364688538,1749205837821,-169.25,0.00029001,2]
[364688539,1749205837830,-1456.16173024,0.00029038,20]
[364688540,1749205837839,-150.0,0.00029083,7]
[364688541,1749205837849,-205.0,0.00029139,2]